Cogmind - Beta 12 @@@ ROGUE MODE // 2023.12.05 @ 20:55:18 Player: ChromeKnight Result: Destroyed by G-50 Soldier with Heavy Laser Performance ------------- Evolutions (5) 2500 Regions Visited (17) 3400 Robots Destroyed (138) 690 Value Destroyed (5377) 5377 Prototype IDs (15) 300 Alien Tech Used (0) 0 Bonus (4093) 4093 TOTAL SCORE: 16360 Bonus ------- High Alert Combat Kills 244 Follower Combat Kills 1853 Network Hubs Disabled 400 Met Zhirov 300 Met Warlord at Base 500 MAIN.C Attacked Warlord 500 Built Enhanced Grunts 300 A7 Reached Mainframe 300 Read Decrypted Archives 300 Friendly Fire -604 Cogmind --------- Core Integrity 0/1000 Matter 280/300 Energy 6/100 System Corruption 0% Temperature Cool (20) Movement Flying (27) Location -5/Warlord Parts ------- > --- POWER (2) -------- (None) > --- PROPULSION (4) --- Improved Diametric Drive Improved Diametric Drive > --- UTILITY (8) ------ Improved Signal Interpreter Advanced Melee Analysis Suite Advanced Melee Analysis Suite Advanced Melee Analysis Suite Experimental Core Analyzer Ghost Barrier > --- WEAPON (3) ------- (None) > --- INVENTORY (5) ---- Vortex Chain Reactor Improved Energy Mantle Vortex Lance (40) Vortex Lance (39) Peak State ------------ > --- POWER ------------ Quantum Reactor > --- PROPULSION ------- Centrium Heavy Treads Centrium Heavy Treads > --- UTILITY ---------- Advanced Heat Sink Advanced Heat Sink Medium Storage Unit Weapon Cycler Improved Medium Armor Plating Layered Medium Armor Plating Improved Hacking Suite > --- WEAPON ----------- Arc Projector Advanced Variable Charge Gun Advanced KE Penetrator > --- INVENTORY -------- Centrium Heavy Treads Centrium Heavy Treads Improved Weapon Shielding Centrium Medium Armor Plating Centrium Medium Armor Plating Gatling Laser Flak Gun Heavy Machine Gun [Rating: 101] Favorites ----------- Power Neutrino Core Engine Ion Engine Power Core Neutrino Core Reactor Quantum Reactor Propulsion Armored Treads Treads Armored Treads Leg Carbon-fiber Leg Hover Unit Improved Airjet Flight Unit Improved Diametric Drive Utility Large Storage Unit Device Weapon Cycler Storage Large Storage Unit Processor Advanced Melee Analysis Suite Hackware Improved Hacking Suite Protection Centrium Medium Armor Plating Weapon Great Maul Energy Gun Heavy Laser Energy Cannon Compact Ion Cannon Ballistic Gun Minigun Ballistic Cannon Mini Assault Cannon Launcher Rocket Launcher Impact Weapon Great Maul Piercing Weapon Lance Build | -11 -10 -10 -9 -9 -9 -8 -8 -7 -6 -6 -6 -6 -6 -5 -5 -5 -5 ------- Run | Jun Mat Min Mat Min Exi Min Mat Fac Fac Ext Cet Arc Hub Fac Upp Upp War Slots Evolved 10 | . . . 2 . . . 2 2 2 . . . . 2 . . . Power 1 | . . . . . . . . . . . . . . 1 . . . Propulsion 2 | . . . . . . . 1 . 1 . . . . . . . . Utility 6 | . . . 2 . . . 1 1 1 . . . . 1 . . . Weapon 1 | . . . . . . . . 1 . . . . . . . . . Parts Attached 179 | 6 3 . 2 11 . 3 24 24 7 6 9 11 9 34 11 4 15 Power 20 | 1 . . . 2 . . 4 1 1 . 1 . 1 5 . 1 3 Engine 11 | 1 . . . 1 . . 4 . 1 . . . 1 2 . . 1 Core 7 | . . . . 1 . . . 1 . . . . . 3 . 1 1 Reactor 2 | . . . . . . . . . . . 1 . . . . . 1 Propulsion 42 | 2 . . 2 3 . . 6 6 1 . 2 3 1 12 . 1 3 Treads 13 | 2 . . 2 3 . . . . . . 2 3 1 . . . . Leg 19 | . . . . . . . 5 . . . . . . 12 . 1 1 Wheel . | . . . . . . . . . . . . . . . . . . Hover 8 | . . . . . . . 1 6 1 . . . . . . . . Flight 2 | . . . . . . . . . . . . . . . . . 2 Utility 65 | 1 3 . . 2 . 1 8 8 5 2 4 4 3 7 9 1 7 Device 19 | . 1 . . . . 1 2 4 3 2 1 . 1 1 2 . 1 Storage 6 | 1 1 . . . . . 2 1 . . . . 1 . . . . Processor 13 | . 1 . . 1 . . 1 1 . . . . . 2 4 . 3 Hackware 4 | . . . . . . . . . . . 1 . . 2 . . 1 Protection 23 | . . . . 1 . . 3 2 2 . 2 4 1 2 3 1 2 Artifact . | . . . . . . . . . . . . . . . . . . Weapon 52 | 2 . . . 4 . 2 6 9 . 4 2 4 4 10 2 1 2 Energy Gun 12 | 1 . . . . . . . 3 . 1 1 1 3 2 . . . Energy Cannon 2 | . . . . . . . . . . . . . . 2 . . . Ballistic Gun 28 | 1 . . . 3 . 1 6 5 . 2 1 3 . 6 . . . Ballistic Cannon 1 | . . . . . . . . 1 . . . . . . . . . Launcher 4 | . . . . 1 . 1 . . . 1 . . 1 . . . . Special Weapon . | . . . . . . . . . . . . . . . . . . Impact Weapon 2 | . . . . . . . . . . . . . . . 2 . . Slashing Weapon . | . . . . . . . . . . . . . . . . . . Piercing Weapon 3 | . . . . . . . . . . . . . . . . 1 2 Special Melee Weapon . | . . . . . . . . . . . . . . . . . . Unidentified Prototypes 15 | . . . . . . . 1 2 1 . 3 1 . 1 . . 6 Corrupted Parts 5 | . . . . . . . . . . . 3 2 . . . . . System Corruption 32 | . . . . . . . . . . . 27 5 . . . . . Parts Lost 56 | . . . . 4 . 3 10 1 1 1 1 5 5 8 1 2 14 Power 10 | . . . . 1 . . 2 . . . . . 2 2 . 1 2 Propulsion 12 | . . . . 1 . . 3 . . . 1 . . 1 . 1 5 Utility 16 | . . . . . . 2 2 1 1 1 . 2 1 2 . . 4 Weapon 18 | . . . . 2 . 1 3 . . . . 3 2 3 1 . 3 Highest Loss Streak 14 | . . . . 3 . 2 6 1 1 1 1 5 3 2 1 2 14 To Critical Strikes . | . . . . . . . . . . . . . . . . . . Average Slot Usage (%) 90 | . 92 100 77 76 100 95 94 97 96 97 86 74 80 86 90 94 97 Engine 4 | . 14 14 11 6 11 11 8 . 3 6 . . 1 2 . . 3 Core 2 | . . . . 4 . . . 6 2 . . . . 5 5 5 4 Treads 9 | . 28 28 22 21 22 22 15 . . . 11 12 13 . . . . Leg 8 | . . . . . . . 8 . . . . . . 19 23 23 22 Hover 3 | . . . . . . . . 22 26 26 3 . . . . . . Device 6 | . . . . . . 7 10 11 11 20 20 17 13 . 3 . . Storage 7 | . 14 14 11 11 11 11 10 7 6 6 6 6 6 5 5 5 5 Processor 10 | . 6 14 11 13 22 11 9 9 6 3 . . . 8 11 23 23 Hackware 3 | . . . . . . . . . . . 3 6 6 15 10 . . Protection 11 | . . . . 2 11 9 13 15 18 13 14 10 19 10 10 17 16 Energy Gun 5 | . 14 14 11 1 . . . 3 13 12 13 6 9 6 . . . Ballistic Gun 9 | . 14 14 11 11 22 14 16 17 6 6 6 5 6 5 11 4 . Launcher 1 | . . . . 4 . 7 . . . . . . . . . . . Impact Weapon 1 | . . . . . . . . . . . . . . . 4 11 10 Naked Turns . | . . . . . . . . . . . . . . . . . . Heaviest Build 66 | 13 28 28 28 36 36 38 43 40 45 49 63 63 61 66 61 61 60 Greatest Support 169 | 40 40 40 40 40 40 40 40 36 45 45 169 160 160 160 66 71 71 Greatest Overweight (x) 9 | 4 . . . 1 . . 9 1 . 1 1 . . 1 . . 1 Average Overweight (x) . | 1 . . . . . . . . . . . . . . . . . Largest Inventory Capacity 15 | 8 15 15 15 15 15 15 15 15 10 10 10 10 15 15 15 15 15 Average Capacity 13 | 7 10 15 15 15 15 15 15 10 10 10 10 10 11 15 15 15 14 Most Carried 15 | . 9 10 15 15 14 15 15 14 10 10 10 10 15 15 14 11 15 Average Carried 11 | . 6 9 14 14 14 14 14 9 8 9 9 9 10 14 11 9 12 Final Capacity 15 | 8 15 15 15 15 15 15 15 10 10 10 10 10 15 15 15 15 5 Final Carried 15 | . 9 10 15 14 14 15 14 10 9 10 10 4 14 15 11 10 5 Class Distribution -------------------- 38% | Scavenger-Mutant 30% | Mutant 8% | Scavenger-Tank 5% | Tank 5% | Gunner 5% | Scavenger-Gunner Dominant Class ---------------- Mutant | -10/Materials Mutant | -10/Mines Mutant | -9/Materials Mutant | -9/Mines Scavenger-Mutant | -9/Exiles Scavenger-Mutant | -8/Mines Mutant | -8/Materials Gunner | -7/Factory Tank | -6/Factory Gunner | -6/Extension Scavenger-Tank | -6/Cetus Scavenger-Tank | -6/Archives Scavenger-Mutant | -6/Hub_04(d) Scavenger-Mutant | -5/Factory Scavenger-Mutant | -5/Upper Caves Scavenger-Mutant | -5/Upper Caves Scavenger-Mutant | -5/Warlord Resources | -11 -10 -10 -9 -9 -9 -8 -8 -7 -6 -6 -6 -6 -6 -5 -5 -5 -5 ----------- Run | Jun Mat Min Mat Min Exi Min Mat Fac Fac Ext Cet Arc Hub Fac Upp Upp War Matter Collected 4777 | 201 98 4 26 211 . 322 786 356 120 387 199 . 679 749 460 84 95 Remotely . | . . . . . . . . . . . . . . . . . . Salvage Created 7005 | . 132 51 . 243 . 449 1366 399 . 752 368 56 1229 1313 388 259 . Parts 283 | . 7 5 . 9 . 11 72 18 . 40 16 1 39 53 9 3 . Haulers Intercepted 8 | . . . . . . . 3 1 . . . . 3 1 . . . Recyclers Shooed 5 | . . . . . . . 2 . . 2 . . 1 . . . . Parts Field Recycled . | . . . . . . . . . . . . . . . . . . Retrieved Matter . | . . . . . . . . . . . . . . . . . . Parts Self-Destructed 3 | . . . . . . . . . . . . . . . . 3 . Prevented . | . . . . . . . . . . . . . . . . . . Kills | -11 -10 -10 -9 -9 -9 -8 -8 -7 -6 -6 -6 -6 -6 -5 -5 -5 -5 ------- Run | Jun Mat Min Mat Min Exi Min Mat Fac Fac Ext Cet Arc Hub Fac Upp Upp War Combat Hostiles Destroyed 105 | . 2 1 . 16 . 12 20 3 . 11 5 1 11 14 4 5 . Melee 1 | . . . . . . . . . . . . . . . . 1 . Guns 72 | . 2 1 . 2 . 3 20 3 . 8 5 1 9 14 4 . . AOE 27 | . . . . 14 . 9 . . . 3 . . 1 . . . . Classes Destroyed 16 | . 2 1 . 3 . . 5 1 . 2 . . 1 . 1 . . Worker 10 | . . 1 . . . 1 1 1 . . . . 5 1 . . . Builder 3 | . . . . . . . 1 . . . . . 1 1 . . . Tunneler 2 | . . . . . . . . . . . . . 2 . . . . Hauler 8 | . . . . . . . 3 1 . . . . 3 1 . . . Recycler 10 | . . . . . . . 2 2 . 2 . . 2 2 . . . Operator 3 | . . . . . . . 1 . . 1 . . 1 . . . . Watcher 7 | . 1 . . . . . 1 . . . 1 . 2 2 . . . Swarmer 4 | . . . . . . . . . . 3 1 . . . . . . Grunt 59 | . 2 1 . 2 . 10 17 1 . 5 3 1 4 9 . 4 . Brawler 4 | . . . . 1 . 2 . . . 1 . . . . . . . Duelist 2 | . . . . . . . . . . 1 . . . 1 . . . Sentry 7 | . . . . 2 . . 2 1 . . . . 1 1 . . . Hunter 8 | . . . . . . . 1 . . 1 . . 4 1 . 1 . Programmer 5 | . . . . . . . . 1 . . . . 2 2 . . . Cetus Guard 1 | . . . . . . . . . . . 1 . . . . . . Packrat 1 | . . . . . . . . . . . . . . . 1 . . Samaritan 1 | . . . . . . . . . . . . . . . 1 . . Assembled 11 | . . . . 11 . . . . . . . . . . . . . Thug 1 | . . . . . . . . . . . . . . . 1 . . Savage 3 | . . . . . . . . . . . . . . . 3 . . Butcher 1 | . . . . . . . . . . . 1 . . . . . . Best Kill Streak 14 | . 2 2 . 14 . 3 10 4 . 4 3 1 10 6 4 2 . Combat Bots Only 14 | . 2 1 . 14 . 3 9 1 . 3 3 1 4 4 4 2 . Max Kills in Single Turn 8 | . 1 1 . 5 . 2 2 1 . 2 2 1 8 2 1 1 . Gunslinging 1 | . . . . . . . 1 . . 1 . . . . . . . Exploded 5 | . . . . 5 . 2 . . . 2 . . 1 . . . . Melee 1 | . . . . . . . . . . . . . . . . 1 . Uniques/NPCs Destroyed 1 | . . . . . . . . . . . 1 . . . . . . A7 (-6/Cetus) Combat | -11 -10 -10 -9 -9 -9 -8 -8 -7 -6 -6 -6 -6 -6 -5 -5 -5 -5 -------- Run | Jun Mat Min Mat Min Exi Min Mat Fac Fac Ext Cet Arc Hub Fac Upp Upp War Damage Taken 12082 | . 115 88 136 1075 . 474 1701 225 66 354 190 1154 1538 2315 217 594 1840 Core 1855 | . . 37 18 215 . 27 245 16 . 31 24 66 169 535 . 89 383 Absorbed by Shields 215 | . . . . . . . . . . 96 119 . . . . . . Reduced by Siege Mode 5 | . . . . . . . . . . . . . 5 . . . . Redirected to Shielding 279 | . . . . . . . 95 38 43 34 5 . 64 . . . . Regen/Repaired (Parts) 256 | . . . . . . . . . . . . . . . . . 256 Core Remaining (%) 72 | 100 . 85 . . . 35 55 97 . . . . 65 . . . . Volleys Fired 410 | . 9 6 4 20 . 25 77 26 . 42 18 2 91 60 30 . . Largest 3 | . 2 2 2 2 . 2 2 3 . 3 3 2 3 3 3 . . Hottest 213 | . 60 60 60 73 . 56 56 75 . 165 170 90 177 213 89 . . Shots Fired 818 | . 18 12 8 29 . 46 149 63 . 110 56 5 128 122 71 1 . Gun 777 | . 18 12 8 21 . 32 148 63 . 102 56 5 124 116 71 1 . Cannon 6 | . . . . . . . . . . . . . . 6 . . . Launcher 35 | . . . . 8 . 14 1 . . 8 . . 4 . . . . Special . | . . . . . . . . . . . . . . . . . . Kinetic 552 | . 9 6 4 19 . 32 148 56 . 35 19 3 72 77 71 1 . Thermal 144 | . . . . . . . . . . 34 18 . 52 40 . . . Explosive 35 | . . . . 8 . 14 1 . . 8 . . 4 . . . . Electromagnetic 87 | . 9 6 4 2 . . . 7 . 33 19 2 . 5 . . . Robot Hit Streak 17 | . 9 9 10 11 . 12 11 11 . 11 7 1 15 17 8 . . Robot Miss Streak 6 | . 1 3 . 5 . 3 4 2 . 4 3 1 6 4 2 . . Penetration Max 1 | . . . . . . . . . . . 1 1 . 1 1 . . Secondary Targets 15 | . . 1 . 1 . . 7 . . 2 . . 1 2 1 . . Max Gunslinging Chain 1 | . . 1 . 1 . . 1 . . 1 . . 1 1 1 . . Shots Hit Robots 559 | . 15 6 8 18 . 33 97 36 . 78 30 2 113 84 28 11 . Core Hits 404 | . 6 4 1 27 . 25 54 13 . 59 20 3 128 49 13 1 1 Critical Kills 7 | . . . . . . . 1 . . . 1 1 . 4 . . . Critical Parts Destroyed 7 | . . . . . . . 1 1 . . 2 . . . . 3 . Critical Strikes 17 | . . . . . . . 2 1 . . 3 1 1 6 . 3 . Burn 3 | . . . . . . . . . . . . . 1 2 . . . Destroy 11 | . . . . . . . 2 1 . . 3 1 . 4 . . . Smash 3 | . . . . . . . . . . . . . . . . 3 . Melee Attacks 51 | . . . . . . . . . . . . . . . 3 38 10 Impact 42 | . . . . . . . . . . . . . . . 3 37 2 Slashing . | . . . . . . . . . . . . . . . . . . Piercing 8 | . . . . . . . . . . . . . . . . 1 7 Entropic 1 | . . . . . . . . . . . . . . . . . 1 Sneak Attacks 2 | . . . . . . . . . . . . . . . 2 . . Combat Hostiles . | . . . . . . . . . . . . . . . . . . Follow-up Attacks 1 | . . . . . . . . . . . . . . . . 1 . Damage Inflicted 15780 | . 169 79 157 1018 . 1209 1703 645 . 2225 1108 90 3720 2167 866 623 1 Guns 10551 | . 169 79 72 191 . 337 1670 645 . 1426 826 90 2320 2061 665 . . Cannons 26 | . . . . . . . . . . . . . . 26 . . . Explosions 4256 | . . . 85 827 . 872 21 . . 799 275 . 1377 . . . . Melee 824 | . . . . . . . . . . . . . . . 201 623 . Ramming 123 | . . . . . . . 12 . . . 7 . 23 80 . . 1 Kinetic 7225 | . 56 24 30 169 . 337 1670 645 . 430 334 78 1310 1477 665 . . Thermal 3120 | . . . 85 . . . . . . 853 649 . 1010 523 . . . Explosive 2474 | . . . . 827 . 872 21 . . 664 . . 90 . . . . Electromagnetic 2014 | . 113 55 42 22 . . . . . 278 118 12 1287 87 . . . Impact 778 | . . . . . . . . . . . . . . . 201 577 . Slashing . | . . . . . . . . . . . . . . . . . . Piercing 46 | . . . . . . . . . . . . . . . . 46 . Highest Corruption 39 | . . . . . . 8 . 4 . 2 29 34 39 6 10 15 15 Average Corruption 14 | . . . . . . 7 . 4 . 2 23 29 36 2 7 13 15 Corruption Purged . | . . . . . . . . . . . . . . . . . . Corruption Blocked . | . . . . . . . . . . . . . . . . . . Effects 211 | . . . . . . 15 . 1 . 6 22 8 77 14 26 41 1 Message Errors 43 | . . . . . . 2 . 1 . 2 1 . 15 2 5 14 1 Matter Fused 59 | . . . . . . 4 . . . 2 6 3 24 6 6 8 . Heat Flow Errors 22 | . . . . . . 2 . . . . 5 1 4 1 2 7 . Energy Discharges 20 | . . . . . . 2 . . . 1 1 . 9 . 3 4 . Parts Fused 4 | . . . . . . . . . . . 1 1 1 . 1 . . Data Loss (minor) 22 | . . . . . . 3 . . . . 3 1 3 2 6 4 . Data Loss (major) 8 | . . . . . . 1 . . . . 1 . 4 1 . 1 . Misfires 8 | . . . . . . . . . . 1 2 1 2 1 . 1 . Alerts 8 | . . . . . . 1 . . . . 1 1 1 . 3 1 . Misdirections 2 | . . . . . . . . . . . 1 . . . . 1 . Weapon Failures 15 | . . . . . . . . . . . . . 14 1 . . . Overload Shots . | . . . . . . . . . . . . . . . . . . Overflow Damage 533 | . . . 14 70 . 22 . . . 2 21 . 30 . 91 283 . Projectiles . | . . . . . . . . . . . . . . . . . . Explosions 159 | . . . 14 70 . 22 . . . 2 21 . 30 . . . . Melee 374 | . . . . . . . . . . . . . . . 91 283 . Knockbacks 6 | . . . . . . . . . . . . . . . 2 4 . Impact 5 | . . . . . . . . . . . . . . . 2 3 . Kinetic . | . . . . . . . . . . . . . . . . . . Secondary 1 | . . . . . . . . . . . . . . . . 1 . Self-Inflicted Damage 463 | . . . 37 119 . 107 36 . . . . . 164 . . . . Shots 13 | . . . 1 4 . 4 1 . . . . . 3 . . . . Rammed 13 | . . . . . . . 2 . . . 1 . 10 . . . . Targets Rammed 24 | . . . . . . . 6 . . . 1 . 10 6 . . 1 Kicked 11 | . . . . . . . 4 . . . . . . 6 . . 1 Crushed . | . . . . . . . . . . . . . . . . . . Highest Temperature 599 | . 126 47 40 26 . 244 111 123 . 322 289 72 329 599 108 248 22 Average Temperature 98 | . 63 19 19 8 . 55 26 48 . 124 87 43 75 198 50 89 12 Received Heat Transfer 2779 | . 66 66 27 113 . 144 864 30 . 70 24 45 117 522 9 126 556 Effects 32 | . . . . . . . . . . . . . . 32 . . . Shutdowns 5 | . . . . . . . . . . . . . . 5 . . . Energy Bleed 3 | . . . . . . . . . . . . . . 3 . . . Interference 5 | . . . . . . . . . . . . . . 5 . . . Matter Decay 1 | . . . . . . . . . . . . . . 1 . . . Short Circuit 1 | . . . . . . . . . . . . . . 1 . . . Damage (minor) 1 | . . . . . . . . . . . . . . 1 . . . Damage (major) 14 | . . . . . . . . . . . . . . 14 . . . Damage (core) 2 | . . . . . . . . . . . . . . 2 . . . Siege Activations 1 | . . . . . . . . . . . . . 1 . . . . Total Turns 7 | . . . . . . . . . . . . . 7 . . . . Longest Duration 7 | . . . . . . . . . . . . . 7 . . . . Robots Corrupted 1 | . . . . . . . . . . . . . 1 . . . . Combat Hostiles 1 | . . . . . . . . . . . . . 1 . . . . Parts Fried 15 | . . . . . . . . . . 1 1 . 10 . . 3 . Impact Corruptions 10 | . . . . . . . . . . . . . . . 2 8 . Robots Melted . | . . . . . . . . . . . . . . . . . . Combat Hostiles . | . . . . . . . . . . . . . . . . . . Parts Melted 7 | . . . . . . . . . . . . . 3 4 . . . Heat Transferred 5955 | . . . 100 . . . . . . 1712 885 . 2148 1110 . . . Parts Sabotaged . | . . . . . . . . . . . . . . . . . . Parts Stolen . | . . . . . . . . . . . . . . . . . . Parts Stripped . | . . . . . . . . . . . . . . . . . . Power Chain Reactions 5 | . . . 1 . . . . . . 2 1 . 1 . . . . Missiles Intercepted . | . . . . . . . . . . . . . . . . . . Alert | -11 -10 -10 -9 -9 -9 -8 -8 -7 -6 -6 -6 -6 -6 -5 -5 -5 -5 ------- Run | Jun Mat Min Mat Min Exi Min Mat Fac Fac Ext Cet Arc Hub Fac Upp Upp War Peak Influence 1071 | . 78 70 41 137 . 266 272 293 73 923 1071 777 831 406 . . . Initial 432 | . . 30 . 15 . . 72 123 73 30 432 427 243 406 . . . Average 198 | . 21 31 8 33 . 135 98 165 65 452 764 610 314 139 . . . Maximum Alert Level 3 | . . . . . . 1 1 1 . 3 3 3 3 2 . . . Low Security (%) 66 | 100 100 100 100 100 . 79 93 68 100 14 . . 10 86 . . . Level 1 16 | . . . . . . 20 6 31 . 24 . . 74 . . . . Level 2 11 | . . . . . . . . . . 48 34 95 10 13 . . . Level 3 5 | . . . . . . . . . . 12 65 4 3 . . . . Level 4 . | . . . . . . . . . . . . . . . . . . Level 5 . | . . . . . . . . . . . . . . . . . . High Security . | . . . . . . . . . . . . . . . . . . Max Security . | . . . . . . . . . . . . . . . . . . Squads Dispatched 22 | . . . . . . . 7 1 . 4 1 . 4 5 . . . Investigation 4 | . . . . . . . 2 . . . 1 . . 1 . . . Extermination 4 | . . . . . . . . . . . . . 2 2 . . . Reinforcement 10 | . . . . . . . 3 1 . 2 . . 2 2 . . . Assault 2 | . . . . . . . . . . 2 . . . . . . . Garrison 2 | . . . . . . . 2 . . . . . . . . . . Intercept . | . . . . . . . . . . . . . . . . . . Searches Triggered . | . . . . . . . . . . . . . . . . . . Construction Impeded 3 | . . . . . . . . . . 1 . . 1 1 . . . Haulers Reinforced 3 | . . . . . . . . 1 . . . . 1 1 . . . Active Scanning Responses . | . . . . . . . . . . . . . . . . . . Cargo Convoy Interrupts . | . . . . . . . . . . . . . . . . . . Stealth | -11 -10 -10 -9 -9 -9 -8 -8 -7 -6 -6 -6 -6 -6 -5 -5 -5 -5 --------- Run | Jun Mat Min Mat Min Exi Min Mat Fac Fac Ext Cet Arc Hub Fac Upp Upp War Distress Signals 16 | . . . . . . . 3 2 . 2 2 1 3 2 . . 1 Communications Jammed . | . . . . . . . . . . . . . . . . . . Distress Signals . | . . . . . . . . . . . . . . . . . . Times Spotted 230 | . 3 2 1 19 . 13 30 9 3 37 21 18 22 22 5 8 17 Peak Tracking Total 15 | . 2 2 1 13 . 3 8 4 3 8 8 13 5 4 4 4 15 Tactical Retreats 16 | . . . . 2 . 1 1 2 . 3 1 . 3 . 1 2 . Traps | -11 -10 -10 -9 -9 -9 -8 -8 -7 -6 -6 -6 -6 -6 -5 -5 -5 -5 ------- Run | Jun Mat Min Mat Min Exi Min Mat Fac Fac Ext Cet Arc Hub Fac Upp Upp War Traps Triggered 9 | . . . . . . . 2 1 1 1 . . 2 2 . . . Indirectly 1 | . . . . . . . . . . . . . 1 . . . . Trap Hack Attempts . | . . . . . . . . . . . . . . . . . . Triggered . | . . . . . . . . . . . . . . . . . . Disarmed . | . . . . . . . . . . . . . . . . . . Reprogrammed . | . . . . . . . . . . . . . . . . . . Reused . | . . . . . . . . . . . . . . . . . . Traps Extracted . | . . . . . . . . . . . . . . . . . . Installed . | . . . . . . . . . . . . . . . . . . Triggered 11 | . . . . . . . . . . . . . . . . 1 10 Machines | -11 -10 -10 -9 -9 -9 -8 -8 -7 -6 -6 -6 -6 -6 -5 -5 -5 -5 ---------- Run | Jun Mat Min Mat Min Exi Min Mat Fac Fac Ext Cet Arc Hub Fac Upp Upp War Machines Disabled 27 | . . . . 1 . . 2 . . 3 3 . 17 . . . 1 Max in Single Turn 17 | . . . . 1 . . 2 . . . 1 . 17 . . . 1 Garrison Access 2 | . . . . . . . . 1 . . . . . 1 . . . Network Hub 2 | . . . . . . . . . . . . . 2 . . . . Energy Cycler 4 | . . . . . . . . . . 4 . . . . . . . Machines Repaired . | . . . . . . . . . . . . . . . . . . Machines Sabotaged . | . . . . . . . . . . . . . . . . . . Overloaded Fab Kills . | . . . . . . . . . . . . . . . . . . Hacking | -11 -10 -10 -9 -9 -9 -8 -8 -7 -6 -6 -6 -6 -6 -5 -5 -5 -5 --------- Run | Jun Mat Min Mat Min Exi Min Mat Fac Fac Ext Cet Arc Hub Fac Upp Upp War Machines Accessed 19 | . 1 . . . . . 1 2 1 5 3 1 . 4 . . 1 Terminals 12 | . 1 . . . . . 1 . 1 4 3 . . 2 . . . Fabricators 1 | . . . . . . . . . . . . . . 1 . . . Repair Stations 2 | . . . . . . . . 1 . 1 . . . . . . . Recycling Units . | . . . . . . . . . . . . . . . . . . Scanalyzers . | . . . . . . . . . . . . . . . . . . Garrison Access 2 | . . . . . . . . 1 . . . . . 1 . . . Total Hacks 73 | . 2 . . . . . 3 3 1 10 7 25 . 21 . . 1 Successful 52 | . 1 . . . . . 1 1 . 5 4 25 . 14 . . 1 Failed 21 | . 1 . . . . . 2 2 1 5 3 . . 7 . . . Catastrophic 2 | . . . . . . . 1 . . . . . . 1 . . . Database Lockouts . | . . . . . . . . . . . . . . . . . . Manual 34 | . 2 . . . . . 3 . . 7 3 . . 19 . . . Terminals 37 | . 2 . . . . . 3 . 1 9 7 . . 15 . . . Fabricators 3 | . . . . . . . . . . . . . . 3 . . . Repair Stations 2 | . . . . . . . . 1 . 1 . . . . . . . Recycling Units . | . . . . . . . . . . . . . . . . . . Scanalyzers . | . . . . . . . . . . . . . . . . . . Garrison Access 5 | . . . . . . . . 2 . . . . . 3 . . . Terminal Hacks 40 | . 1 . . . . . 1 . . 3 4 25 . 5 . . 1 Record 28 | . . . . . . . . . . . 3 25 . . . . . Robot Analysis 1 | . 1 . . . . . . . . . . . . . . . . Open Door 3 | . . . . . . . . . . 1 1 . . . . . 1 Level Access Points 1 | . . . . . . . . . . . . . . 1 . . . Branch Access Points 1 | . . . . . . . . . . . . . . 1 . . . Unreport Threat 2 | . . . . . . . . . . . . . . 2 . . . Assault Status 1 | . . . . . . . . . . 1 . . . . . . . Recall Investigation 1 | . . . . . . . 1 . . . . . . . . . . Recall Reinforcements 2 | . . . . . . . . . . 1 . . . 1 . . . Fabricator Hacks . | . . . . . . . . . . . . . . . . . . Repair Station Hacks . | . . . . . . . . . . . . . . . . . . Recycling Unit Hacks . | . . . . . . . . . . . . . . . . . . Scanalyzer . | . . . . . . . . . . . . . . . . . . Garrison Access Hacks 2 | . . . . . . . . 1 . . . . . 1 . . . Seal Access 2 | . . . . . . . . 1 . . . . . 1 . . . Unauthorized Hacks 10 | . . . . . . . . . . 2 . . . 8 . . . Terminals 6 | . . . . . . . . . . 2 . . . 4 . . . Track 1 | . . . . . . . . . . . . . . 1 . . . Assimilate 1 | . . . . . . . . . . . . . . 1 . . . Botnet 1 | . . . . . . . . . . . . . . 1 . . . Detonate 1 | . . . . . . . . . . 1 . . . . . . . Disrupt 1 | . . . . . . . . . . 1 . . . . . . . Operators 1 | . . . . . . . . . . . . . . 1 . . . Fabricators 3 | . . . . . . . . . . . . . . 3 . . . Report 1 | . . . . . . . . . . . . . . 1 . . . Liberate 1 | . . . . . . . . . . . . . . 1 . . . Fabnet 1 | . . . . . . . . . . . . . . 1 . . . Repair Stations . | . . . . . . . . . . . . . . . . . . Recycling Units . | . . . . . . . . . . . . . . . . . . Scanalyzers . | . . . . . . . . . . . . . . . . . . Garrison Access 1 | . . . . . . . . . . . . . . 1 . . . Reprogram 1 | . . . . . . . . . . . . . . 1 . . . Data Cores Recovered . | . . . . . . . . . . . . . . . . . . Used . | . . . . . . . . . . . . . . . . . . Hacking Detections 13 | . 1 . . . . . 1 2 1 2 3 . . 3 . . . Full Trace Events 1 | . . . . . . . . . . . 1 . . . . . . Feedback Events . | . . . . . . . . . . . . . . . . . . Feedback Blocked . | . . . . . . . . . . . . . . . . . . Robot Schematics Acquired . | . . . . . . . . . . . . . . . . . . Robots Built . | . . . . . . . . . . . . . . . . . . Authchips . | . . . . . . . . . . . . . . . . . . Time . | . . . . . . . . . . . . . . . . . . Total Robot Build Rating . | . . . . . . . . . . . . . . . . . . Part Schematics Acquired . | . . . . . . . . . . . . . . . . . . Parts Built . | . . . . . . . . . . . . . . . . . . Authchips . | . . . . . . . . . . . . . . . . . . Time . | . . . . . . . . . . . . . . . . . . Total Part Build Rating . | . . . . . . . . . . . . . . . . . . Parts Repaired . | . . . . . . . . . . . . . . . . . . Time . | . . . . . . . . . . . . . . . . . . Parts Recycled . | . . . . . . . . . . . . . . . . . . Recycled Matter . | . . . . . . . . . . . . . . . . . . Retrieved Matter . | . . . . . . . . . . . . . . . . . . Retrieved Components . | . . . . . . . . . . . . . . . . . . Parts Scanalyzed . | . . . . . . . . . . . . . . . . . . Part Schematics Acquired . | . . . . . . . . . . . . . . . . . . Parts Damaged . | . . . . . . . . . . . . . . . . . . Bothacking | -11 -10 -10 -9 -9 -9 -8 -8 -7 -6 -6 -6 -6 -6 -5 -5 -5 -5 ------------ Run | Jun Mat Min Mat Min Exi Min Mat Fac Fac Ext Cet Arc Hub Fac Upp Upp War Used RIF Installer . | . . . . . . . . . . . . . . . . . . Robots Hacked . | . . . . . . . . . . . . . . . . . . Non-combat . | . . . . . . . . . . . . . . . . . . Combat . | . . . . . . . . . . . . . . . . . . Robot Hacks Applied . | . . . . . . . . . . . . . . . . . . Relay Couplers Released . | . . . . . . . . . . . . . . . . . . Fabnet Peak Effective % . | . . . . . . . . . . . . . . . . . . Robots Rewired 10 | . . . . . . . . . . 10 . . . . . . . Allies Hacked . | . . . . . . . . . . . . . . . . . . Hacks Repelled . | . . . . . . . . . . . . . . . . . . Allies | -11 -10 -10 -9 -9 -9 -8 -8 -7 -6 -6 -6 -6 -6 -5 -5 -5 -5 -------- Run | Jun Mat Min Mat Min Exi Min Mat Fac Fac Ext Cet Arc Hub Fac Upp Upp War Total Allies 22 | . . 3 . . . . . . . 14 5 . . . . . . Largest Group 10 | . . 3 2 1 . . . . . 10 9 5 . . . . . Highest-Rated Group 703 | . . 40 24 16 . . . . . 399 703 404 . . . . . Highest-Rated Ally 159 | . . 16 16 16 . . . . . 159 153 96 . . . . . Total Orders . | . . . . . . . . . . . . . . . . . . Ally Attacks 241 | . . 7 6 3 . . . . . 94 93 38 . . . . . Total Damage 7516 | . . 79 64 32 . . . . . 2471 3197 1673 . . . . . Kills 52 | . . 1 1 . . . . . . 21 19 10 . . . . . Allies Corrupted . | . . . . . . . . . . . . . . . . . . Allies Melted . | . . . . . . . . . . . . . . . . . . Intel | -11 -10 -10 -9 -9 -9 -8 -8 -7 -6 -6 -6 -6 -6 -5 -5 -5 -5 ------- Run | Jun Mat Min Mat Min Exi Min Mat Fac Fac Ext Cet Arc Hub Fac Upp Upp War Robot Analysis Total 1 | . 1 . . . . . . . . . . . . . . . . Derelict Logs Recovered 7 | . . 1 . 2 . . . . . . . . . . 1 3 . Drone Launches . | . . . . . . . . . . . . . . . . . . Drone Recoveries . | . . . . . . . . . . . . . . . . . . Exploration | -11 -10 -10 -9 -9 -9 -8 -8 -7 -6 -6 -6 -6 -6 -5 -5 -5 -5 ------------- Run | Jun Mat Min Mat Min Exi Min Mat Fac Fac Ext Cet Arc Hub Fac Upp Upp War Turns Passed 11583 | 73 214 793 122 1036 111 685 1166 550 327 847 470 174 1147 1386 817 910 755 Spaces Moved 7016 | 38 106 478 61 483 66 358 407 830 558 611 249 95 375 598 524 632 547 Core 20 | 19 . . . . . . 1 . . . . . . . . . . Treads 2653 | 19 106 478 61 483 66 358 384 . . . 220 95 375 8 . . . Legs 2319 | . . . . . . . 22 5 . . . . . 590 524 632 546 Wheels . | . . . . . . . . . . . . . . . . . . Hover 2023 | . . . . . . . . 825 558 611 29 . . . . . . Flight 1 | . . . . . . . . . . . . . . . . . 1 Fastest Speed 27 | 50 160 160 160 165 170 170 170 42 40 40 40 160 160 120 120 120 27 Average Speed 119 | 170 160 160 168 169 170 170 216 43 40 61 149 160 160 122 120 120 120 Slowest Speed 500 | 250 160 160 170 250 170 170 500 190 42 100 160 160 160 190 120 120 190 Overloaded Moves . | . . . . . . . . . . . . . . . . . . Propulsion Burnouts . | . . . . . . . . . . . . . . . . . . Robots Hopped 1 | . . . . . . . . . . 1 . . . . . . . Cave-ins Triggered 2 | . . . . . . . . . . 1 . . . . . 1 . Exploration Rate (%) 47 | 5 25 92 11 93 12 81 31 16 10 64 79 81 32 18 66 66 77 Regions Visited 17 Branch Regions 11 Pre-discovered Areas 2 | . . . . . . . . . . . . . . . 1 1 . Known Exits Taken 1 | . . . . . . . . . . . . . . 1 . . . Unknown Exits Taken 16 | 1 1 1 1 1 1 1 1 1 1 1 1 1 1 . 1 1 . Scrap Searched 10 | . . 3 . 2 . 2 . . . . . . . . 1 2 . Spaces Dug 71 | . . . . . . . . . . 17 . . 19 . 6 22 7 Terrain Destroyed 780 | . . . 8 69 . 132 . . . 138 17 1 366 10 9 23 7 Melee 30 | . . . . . . . . . . . . . . . 1 22 7 Projectile 18 | . . . . . . . . . . . . 1 . 10 6 1 . AOE 730 | . . . 8 69 . 132 . . . 138 17 . 366 . . . . Terrain Rammed . | . . . . . . . . . . . . . . . . . . Walls Destroyed . | . . . . . . . . . . . . . . . . . . Machines Disabled . | . . . . . . . . . . . . . . . . . . Actions | -11 -10 -10 -9 -9 -9 -8 -8 -7 -6 -6 -6 -6 -6 -5 -5 -5 -5 --------- Run | Jun Mat Min Mat Min Exi Min Mat Fac Fac Ext Cet Arc Hub Fac Upp Upp War Total 9469 | 43 135 496 73 671 65 390 573 991 661 1017 317 113 794 1140 645 716 629 Wait 1476 | . 7 12 . 147 . . 24 76 90 236 25 . 289 417 69 48 36 Move 6997 | 37 105 477 60 482 65 357 407 829 557 607 248 94 374 597 523 631 547 Hop 1 | . . . . . . . . . . 1 . . . . . . . Pick Up 97 | . 9 1 5 5 . 4 15 13 3 3 4 2 17 6 2 . 8 Fast Attach 74 | 6 1 . . 6 . . 12 5 2 . 5 3 2 21 4 1 6 Attach 63 | . 1 . . 1 . 2 6 12 5 . 2 7 5 7 7 2 6 Detach 7 | . 1 . . . . . . 2 1 . . . . 2 1 . . Swap 42 | . 1 . 2 4 . 1 6 7 . 6 2 1 2 6 . 1 3 Drop 118 | . 1 . 2 6 . 1 21 21 3 5 12 3 4 18 6 1 14 Fire 410 | . 9 6 4 20 . 25 77 26 . 42 18 2 91 60 30 . . Melee 43 | . . . . . . . . . . . . . . . 3 32 8 Ram . | . . . . . . . . . . . . . . . . . . Kick 10 | . . . . . . . 3 . . . . . . 6 . . 1 Crush 13 | . . . . . . . 2 . . . 1 . 10 . . . . Escape Stasis 14 | . . . . . . . . . . 14 . . . . . . . Rewire 104 | . . . . . . . . . . 103 . 1 . . . . . Trap . | . . . . . . . . . . . . . . . . . . Miscellaneous . | . . . . . . . . . . . . . . . . . . Route ------- -11/Junkyard -10/Materials -10/Mines -9/Materials -9/Mines (discovered 3 exits: *Mat x2 / [*Exi]) -9/Exiles -8/Mines -8/Materials -7/Factory (discovered 3 exits: *Fac x2 / Sto) -6/Factory -6/Extension (discovered 2 exits: *Fac / *Cet) -6/Cetus -6/Archives -6/Hub_04(d) (discovered 2 exits: *Fac x2) -5/Factory (discovered 6 exits: Fac x4 / *Upp x2) -5/Upper Caves -5/Upper Caves -5/Warlord History --------- Turn | Location | Event 20 | -11/Junkyard | Discovered new exit (range 16) 74 | -11/Junkyard | Entered Materials 267 | -10/Materials | Discovered new exit (range 12) 288 | -10/Materials | Entered Mines 300 | -10/Mines | Assisted by bots powering up and referring to "LRC-V3" 313 | -10/Mines | Build established: Mutant 618 | -10/Mines | Learned Materials garrison access intel 1010 | -10/Mines | Received a Rocket Launcher from a helpful Derelict 1062 | -10/Mines | Discovered new exit (range 6) 1081 | -10/Mines | Entered Materials 1081 | -9/Materials | Accompanied by 2 allies 1081 | -9/Materials | Evolved 2 slots: Utility x2 1194 | -9/Materials | Discovered new exit (range 6) 1203 | -9/Materials | Entered Mines 1203 | -9/Mines | Accompanied by 1 ally 1312 | -9/Mines | Assembled infested the area 1394 | -9/Mines | Destroyed 14 combat bots 1924 | -9/Mines | Discovered new exit (range 16) 1932 | -9/Mines | Learned Materials security intel 1983 | -9/Mines | Core integrity fell below 50% 2027 | -9/Mines | Lost 3 parts (1p1n1w) 2135 | -9/Mines | Discovered new exit (range 10) 2232 | -9/Mines | Deemed a non-threat by the Exiles lab entrance 2232 | -9/Mines | Discovered new exit (range 5) 2239 | -9/Mines | Entered Exiles 2262 | -9/Exiles | Discovered new exit (range 17) 2282 | -9/Exiles | Met 8R-AWN 2296 | -9/Exiles | Build established: Scavenger-Mutant 2350 | -9/Exiles | Entered Mines 2539 | -8/Mines | Discovered new exit (range 14) 3035 | -8/Mines | Entered Materials 3035 | -8/Materials | Evolved 2 slots: Propulsion x1, Utility x1 3037 | -8/Materials | Loaded intel: 1 garrison access location 3284 | -8/Materials | Build established: Mutant 4093 | -8/Materials | Garrison activated, responded to threat 4160 | -8/Materials | Discovered new exit (range 15) 4164 | -8/Materials | Destroyed 9 combat bots 4170 | -8/Materials | Lost 6 parts (1p2n1u2w) 4201 | -8/Materials | Entered Factory 4201 | -7/Factory | Evolved 2 slots: Utility x1, Weapon x1 4202 | -7/Factory | Identified exit to Storage 4404 | -7/Factory | Discovered new exit (range 11) 4535 | -7/Factory | Discovered new exit (range 15) 4751 | -7/Factory | Entered another Factory area 4751 | -6/Factory | Evolved 2 slots: Propulsion x1, Utility x1 4929 | -6/Factory | Discovered new exit (range 15) 5078 | -6/Factory | Entered Extension 5221 | -6/Extension | Rescued A7 5326 | -6/Extension | Build established: Gunner 5351 | -6/Extension | Energy Cycler disabled 5351 | -6/Extension | Rescued a captive Derelict 5351 | -6/Extension | Rescued a captive Derelict 5351 | -6/Extension | Rescued a captive Derelict 5353 | -6/Extension | Rescued a captive Derelict 5353 | -6/Extension | Rescued a captive Derelict 5353 | -6/Extension | Rescued a captive Derelict 5354 | -6/Extension | Rescued a captive Derelict 5355 | -6/Extension | Rescued a captive Derelict 5366 | -6/Extension | Rescued a captive Derelict 5428 | -6/Extension | First assault squad dispatched 5582 | -6/Extension | Crushed by falling debris 5879 | -6/Extension | Discovered new exit (range 10) 5879 | -6/Extension | Discovered new exit (range 6) 5925 | -6/Extension | Entered Cetus 5925 | -6/Cetus | Accompanied by 9 allies (A7) 5930 | -6/Cetus | Acquired a Cetus Manufacturing Module code from A7 5947 | -6/Cetus | Spotted Cetus Guard 5947 | -6/Cetus | Spotted Cetus Guard 5956 | -6/Cetus | Allies destroyed Cetus Guard 5956 | -6/Cetus | Spotted Cetus Guard 5959 | -6/Cetus | Spotted Cetus Guard 5962 | -6/Cetus | Allies destroyed Cetus Guard 5970 | -6/Cetus | Allies destroyed Cetus Guard 5971 | -6/Cetus | Destroyed Cetus Guard 5991 | -6/Cetus | System corruption reached 10% 6092 | -6/Cetus | Started Cetus Manufacturing Module 6117 | -6/Cetus | Manufactured an Enhanced Grunt 6142 | -6/Cetus | Manufactured an Enhanced Grunt 6167 | -6/Cetus | Manufactured an Enhanced Grunt 6169 | -6/Cetus | Escorted A7 to Cetus Mainframe 6192 | -6/Cetus | Manufactured an Enhanced Grunt 6217 | -6/Cetus | Manufactured an Enhanced Grunt 6281 | -6/Cetus | Build established: Scavenger-Tank 6313 | -6/Cetus | Allies destroyed A7 6368 | -6/Cetus | Discovered new exit (range 15) 6395 | -6/Cetus | Entered Archives 6395 | -6/Archives | Accompanied by 5 allies 6424 | -6/Archives | Met Zhirov 6430 | -6/Archives | Reinforcements dispatched to Archives 6462 | -6/Archives | Read partially decrypted archive contents 6466 | -6/Archives | Discovered new exit (range 16) 6475 | -6/Archives | Reinforcements dispatched to Archives 6477 | -6/Archives | Zhirov warped through subspace 6495 | -6/Archives | Zhirov detonated Archives 6526 | -6/Archives | Lost 5 parts (2u3w) 6540 | -6/Archives | System corruption reached 30% 6569 | -6/Archives | Entered Hub_04(d) 6758 | -6/Hub_04(d) | Lost 3 parts (1p1u1w) 6873 | -6/Hub_04(d) | Discovered new exit (range 9) 7412 | -6/Hub_04(d) | Discovered new exit (range 13) 7675 | -6/Hub_04(d) | Network Hub disabled 7675 | -6/Hub_04(d) | Network Hub disabled 7716 | -6/Hub_04(d) | Entered Factory 7716 | -5/Factory | Evolved 2 slots: Power x1, Utility x1 8575 | -5/Factory | Build established: Scavenger-Mutant 8895 | -5/Factory | Identified exit to Factory 8895 | -5/Factory | Identified exit to Upper Caves 9077 | -5/Factory | Core integrity fell below 50% 9102 | -5/Factory | Entered Upper Caves 9296 | -5/Upper Caves | Build established: Scavenger-Gunner 9517 | -5/Upper Caves | Ambushed by wild Derelicts 9535 | -5/Upper Caves | System corruption reached 10% 9803 | -5/Upper Caves | Spotted B-75 Beast 9827 | -5/Upper Caves | Build established: Scavenger-Mutant 9908 | -5/Upper Caves | Discovered new exit (range 9) 9919 | -5/Upper Caves | Entered another Upper Caves area 10213 | -5/Upper Caves | Crushed by falling debris 10334 | -5/Upper Caves | Learned location of 1 exit from Factory 10611 | -5/Upper Caves | Learned location of Warlord (-5) 10686 | -5/Upper Caves | Spotted B-75 Beast 10819 | -5/Upper Caves | Discovered new exit (range 3) 10829 | -5/Upper Caves | Entered Warlord 10873 | -5/Warlord | System corruption cleaned by Quarantine Array 11003 | -5/Warlord | Visited the Vortex Lab 11013 | -5/Warlord | Found Prototype Piercing Weapon 11015 | -5/Warlord | Warlord's base attacked by MAIN.C 11015 | -5/Warlord | Found Prototype Piercing Weapon 11311 | -5/Warlord | Met Warlord 11319 | -5/Warlord | Identified Vortex Lance (x2) 11332 | -5/Warlord | Found Prototype Reactor 11332 | -5/Warlord | Identified Vortex Chain Reactor 11350 | -5/Warlord | Found Prototype Processor 11353 | -5/Warlord | Found Prototype Hackware 11365 | -5/Warlord | Warlord forces counterattacked 11547 | -5/Warlord | Spotted Executioner 11573 | -5/Warlord | Identified Exp. Core Analyzer 11574 | -5/Warlord | Identified Ghost Barrier 11576 | -5/Warlord | Core integrity fell below 20% 11584 | -5/Warlord | Destroyed by G-50 Soldier with Heavy Laser Last Messages --------------- 11575_ Identified Imp. Diametric Drive. 11575_ Penetrated by Slug. 11576_ Arm. Leg destroyed. 11576_ Adv. Melee Analysis Suite destroyed. 11577_ Critical hit (Burn: +37). 11578_ Flexi-carbon Leg destroyed. 11578_ Discarded Adv. Melee Analysis Suite. 11578_ Penetrated by Slug. 11578_ Lyr. Light Armor Plating destroyed. 11579_ Great Maul destroyed. 11580_ Flexi-carbon Leg destroyed. 11581_ Dropped Mak. Shrapnel Gun. 11581_ Dropped Actuator Array. 11581_ Penetrated by Slug. 11581_ Slug penetrates X-82 Rainmaker. 11582_ Dropped Centrium Heavy Treads. 11582_ Lance destroyed. 11582_ Great Maul destroyed. 11583_ Dropped Lrg. Storage Unit. 11583_ Knocked back. Map ----- +----------------------------------------------------+ | #???# ##????????????????????????????? | | " #???#############???????????????????????????? | | " #????????????## ##??????????????????????????? | | #?????????#???## ####???????????????????????? | | #???????## ???###"#"#???????????????????????? | | #???????#""#### !!#????????????????????????? | | ######???????# # #????????????????????????? | | ?????????????# # #????????????????????????? | | ?????????????# + [[#????????????????????????? | | #########????# ######????????????????????????? | | #????# #?????????????????????????????? | | #????## ##?????????????????????????????? | | " "" " #?????# #??????????????????????? ???###? | | """""" #?????# #??????????????????????? ??? | | """" ####??# #???????????????????????? ### | | ## #### #????????????????????????? | | + #??????????????????????????# | | ^ # ##?????""#?????????????????# | | ####+#### #????#""#??????????????????# | | [ %%[ %####??#""#???????????????????# | | %= [ ####""#####?## #???????????# | | ! "" "# ########??????# | | [ igg!/ ""= * """"""#??????? | | % %#! ===E=% g ""%*[%! """ """#?####?# | | =% !% %%=%[==[ !==%*%/=% g ### ### | | ]=*%!%]=%= %! !@*!%%/=*= g + | | # ### %%% =!=== %%%%%//%==%g + | | # #?# % !%[= % !]=!!==!%%% g g #### | | ##?## ## ==""!%%%* x g""""#??## | | ## #### ## ;% ]= ""=%!! ""#???# | | # # =%* # "" =! ;###########???# # | | # ## # ## ""######?????????????# # | | ## = ##""#?????????????????? # | | # =!! ####""#????????????????? ## | | *%=! #??""?????????????????# ##? | | *"! ##??"?????????????????? ??? | | ## "% ?????????????????????# ??? | | ## #?????????????????????# #??? | | # # # ##? #?????????????????????# ???? | | # # ##?? """"?? #?????????????????????# ???? | | ########?? """???? ??????????????????????? ????? | | #?? ?? "?????????????????????????????????? | | #?????????????????????????????????????????? | | #?????????????????????????????????????????? | | #?????????????????????????????????????????? | | "# X#?????????????????????????????????????????? | | "## ""##?????????????????????????????????????????? | | "# #?????????????????????????????????????????? | | "# ! #?????????????????????????????????????????? | | "# !!#?????????????????????????????????????????? | +----------------------------------------------------+ Best States ------------- Heat Dissipation 75 Energy Generation 29 Energy Capacity 500 Matter Stores 300 Matter Capacity 300 Sight Range 18 Terrain Scan Density 10 ECM Strength 2 Additional Mass Support 9 Armor Coverage 900 Resistance: TH 10 Propulsion Shielding 66 Utility Shielding 66 Weapon Shielding 66 Weapon Cycling 15 Evasion (%) 57 Targeting Accuracy 8 Melee Accuracy 32 Target Analysis 6 Core Analysis 8 Recoil Reduction 6 Offensive Hacking 32 Defensive Hacking 20 Item Schematics ----------------- None Robot Schematics ------------------ None Fabricated ------------ Nothing Alien Tech Used ----------------- None Achievements -------------- None Challenges ------------ None Game ------ Seed GrapheneHugeDoublenader Manual? 0 Play Time 01:19:32 Cumulative 417.9 hours Start 2023.12.05 @ 08:53:23 End 2023.12.05 @ 20:55:18 Sessions 5 Manual Loads 0 Difficulty Rogue Special Mode None Game No. 736 Rogue 581 Adventurer 148 Explorer 7 Win Type - Total 18 Types 15/0/2/1/0/0/0/0/0 Lore% 80 Gallery% 89 Achievement% 72 Wizard Run 0 Options --------- ASCII 0 Keyboard 0 Movement Numpad Keybinds 0 Fullscreen 2 Font 18/SmallcapsGlow Map View 76x50 Tactical HUD 1 Map Filters NONE Filters NONE Steam 1 RUN: 9d47bdd9-af0a-4d35-9f2c-621eaa585514